{"text_format":"3","workbook":"xlsx","n_sheets":26,"sheets":["Pornire","1","2","3","4","5","6","7","8","9","10","11","12","13","14","15","16","17","18","19","20","21","22","23","24","Aflați mai multe"],"not_rendered":{"images":24,"defined_names":5,"pivot_tables":19},"read":"whole","date_system":"1900"}

{"sheet":"Pornire","index":0,"n_rows":5,"n_cols":1,"rows_kept":5}
["Bun venit\nInstrucțiuni pentru cititoarele de ecran: Obțineți mai mult de la rapoartele PivotTable. Un raport PivotTable simplu vă oferă un rezumat general al datelor, dar uneori aveți nevoie de răspunsuri detaliate la anumite întrebări. În această situație, poate fi util să adăugați mai multe câmpuri coloană și rând. \nInstrucțiunile vor indica celulele în care trebuie să navigați pentru a utiliza o caracteristică sau a citi mai departe.\nPentru a începe, apăsați CTRL+PAGE DOWN."]
["Obțineți mai mult de la rapoartele PivotTable"]
["Un raport PivotTable simplu vă oferă un rezumat general al datelor,\ndar uneori aveți nevoie de răspunsuri detaliate la anumite întrebări.\nÎn această situație, poate fi util să adăugați mai multe câmpuri coloană și rând."]
["DE REȚINUT\nAți parcurs primul tutorial? Dacă nu, accesați Fișier > Nou și găsiți Creați primul dvs. PivotTable."]
["Mergeți înapoi la început apăsând CTRL+HOME. Pentru a începe turul, apăsați CTRL+PAGE DOWN."]

{"sheet":"1","index":1,"n_rows":16,"n_cols":9,"rows_kept":16}
["În primul tutorial, v-am prezentat conceptul rapoartelor PivotTable. V-am explicat cum se poate utiliza un câmp rând drept condiție care împarte un câmp valoare.   "]
["Celulele H10-I14 conțin un PivotTable care sintetizează datele din celulele B8-E16. PivotTable are două coloane: Cumpărător și Sumă de Sumă. Coloana Cumpărător conține valorile Tata, Mama, Cătălina și Total general; Coloana Sumă de Sumă conține valorile 220 lei, 270 lei, 810 lei și 1.300 lei. Coloana Cumpărător este alcătuită dintr-un câmp rând, iar coloană Sumă de Sumă este alcătuită dintr-un câmp valoare."]
["Pentru a continua acest tutorial, apăsați CTRL+PAGE DOWN. Pentru a trece la foaia anterioară, apăsați CTRL+PAGE UP."]
[]
[]
[]
[]
[null,"Dată","Cumpărător","Tip","Sumă"]
["Acest exemplu vă arată cum câmpul rând...","2017-01-01","Tata","Cadouri",{"v":95,"d":"95 lei"}]
["...împarte câmpul valoare.","2017-01-15","Mama","Alimente",{"v":325,"d":"325 lei"},null,null,"Cumpărător","Sumă de Sumă"]
[null,"2017-01-17","Mama","Bilete",{"v":250,"d":"250 lei"},null,null,"Tata",{"v":220,"d":"220 lei"}]
[null,"2017-01-21","Tata","Alimente",{"v":125,"d":"125 lei"},null,null,"Cătălina",{"v":270,"d":"270 lei"}]
[null,"2017-02-02","Mama","Alimente",{"v":235,"d":"235 lei"},null,null,"Mama",{"v":810,"d":"810 lei"}]
[null,"2017-02-20","Cătălina","Muzică",{"v":20,"d":"20 lei"},null,null,"Total general",{"v":1300,"d":"1,300 lei"}]
[null,"2017-02-25","Cătălina","Bilete",{"v":125,"d":"125 lei"}]
[null,"2017-02-25","Cătălina","Sport",{"v":125,"d":"125 lei"}]

{"sheet":"2","index":2,"n_rows":108,"n_cols":7,"rows_kept":108}
["Însă atunci când analizați pentru prima dată un raport PivotTable, puteți descoperi că aveți nevoie de mai multe răspunsuri."]
["Atunci când analizați pentru prima dată un raport PivotTable, este posibil să aveți întrebări precum „Când s-au făcut aceste achiziții?”, „Pe ce a cheltuit bani fiecare persoană?”, „Ce a cumpărat mama atât de scump?”."]
["În acest exemplu, celulele F11-G15 arată aceleași două coloane PivotTable ca înainte. Coloana Cumpărător este un câmp rând și conține valorile Tata, Mama, Cătălina și Total general; Coloana Sumă de Sumă este câmpul valoare și conține valorile 220 lei, 270 lei, 810 lei și 1.300 lei. "]
["Pentru a continua acest tutorial, apăsați CTRL+PAGE DOWN. Pentru a trece la foaia anterioară, apăsați CTRL+PAGE UP."]
[]
[]
[]
[]
[]
[]
[{"$nulls":5},"Cumpărător","Sumă de Sumă"]
[{"$nulls":5},"Tata",{"v":220,"d":"220 lei"}]
[{"$nulls":5},"Cătălina",{"v":270,"d":"270 lei"}]
[{"$nulls":5},"Mama",{"v":810,"d":"810 lei"}]
[{"$nulls":5},"Total general",{"v":1300,"d":"1,300 lei"}]
{"$rows_empty":84}
[null,"Dată","Cumpărător","Tip","Sumă"]
[null,"2017-01-01","Tata","Cadouri",{"v":95,"d":"95 lei"}]
[null,"2017-01-15","Mama","Alimente",{"v":325,"d":"325 lei"}]
[null,"2017-01-17","Mama","Bilete",{"v":250,"d":"250 lei"}]
[null,"2017-01-21","Tata","Alimente",{"v":125,"d":"125 lei"}]
[null,"2017-02-02","Mama","Alimente",{"v":235,"d":"235 lei"}]
[null,"2017-02-20","Cătălina","Muzică",{"v":20,"d":"20 lei"}]
[null,"2017-02-25","Cătălina","Bilete",{"v":125,"d":"125 lei"}]
[null,"2017-02-25","Cătălina","Sport",{"v":125,"d":"125 lei"}]

{"sheet":"3","index":3,"n_rows":108,"n_cols":7,"rows_kept":108}
["Toate sunt întrebări bune, dar pentru moment haideți să ne concentrăm doar pe una."]
["Pe ce a cheltuit bani fiecare persoană?"]
["Pentru referință, celulele F11-G15 arată aceleași două coloane PivotTable ca înainte. Coloana Cumpărător este un câmp rând și conține valorile Tata, Mama, Cătălina și Total general; Coloana Sumă de Sumă este câmpul valoare și conține valorile 220 lei, 270 lei, 810 lei și 1.300 lei. "]
["Pentru a continua acest tutorial, apăsați CTRL+PAGE DOWN. Pentru a trece la foaia anterioară, apăsați CTRL+PAGE UP."]
[]
[]
[]
[]
[]
[]
[{"$nulls":5},"Cumpărător","Sumă de Sumă"]
[{"$nulls":5},"Tata",{"v":220,"d":"220 lei"}]
[{"$nulls":5},"Cătălina",{"v":270,"d":"270 lei"}]
[{"$nulls":5},"Mama",{"v":810,"d":"810 lei"}]
[{"$nulls":5},"Total general",{"v":1300,"d":"1,300 lei"}]
{"$rows_empty":84}
[null,"Dată","Cumpărător","Tip","Sumă"]
[null,"2017-01-01","Tata","Cadouri",{"v":95,"d":"95 lei"}]
[null,"2017-01-15","Mama","Alimente",{"v":325,"d":"325 lei"}]
[null,"2017-01-17","Mama","Bilete",{"v":250,"d":"250 lei"}]
[null,"2017-01-21","Tata","Alimente",{"v":125,"d":"125 lei"}]
[null,"2017-02-02","Mama","Alimente",{"v":235,"d":"235 lei"}]
[null,"2017-02-20","Cătălina","Muzică",{"v":20,"d":"20 lei"}]
[null,"2017-02-25","Cătălina","Bilete",{"v":125,"d":"125 lei"}]
[null,"2017-02-25","Cătălina","Sport",{"v":125,"d":"125 lei"}]

{"sheet":"4","index":4,"n_rows":108,"n_cols":9,"rows_kept":108}
["Ultima întrebare adresată a fost „Pe ce a cheltuit bani fiecare persoană?”"]
["Am răspuns la această întrebare prin adăugarea unui câmp coloană pentru Tip. În consecință, raportul PivotTable are acum cinci coloane noi care ne arată tipul de achiziție efectuat de fiecare persoană. "]
["Noul raport PivotTable merge acum de la celula C10 la I15, cu coloane pentru Cumpărător, Alimente, Muzică, Sport, Bilete, Cadouri și Total general. Coloanele Cumpărător și Total general sunt la fel ca înainte, iar noile coloane de detalii sunt între ele."]
["Pentru a continua acest tutorial, apăsați CTRL+PAGE DOWN. Pentru a trece la foaia anterioară, apăsați CTRL+PAGE UP."]
[]
[]
[]
[]
[]
[]
[null,null,"Sumă de Sumă","Tip"]
[null,null,"Cumpărător","Alimente","Muzică","Sport","Bilete","Cadouri","Total general"]
[null,null,"Tata",{"v":125,"d":"125 lei"},{"$nulls":3},{"v":95,"d":"95 lei"},{"v":220,"d":"220 lei"}]
[null,null,"Cătălina",null,{"v":20,"d":"20 lei"},{"v":125,"d":"125 lei"},{"v":125,"d":"125 lei"},null,{"v":270,"d":"270 lei"}]
[null,null,"Mama",{"v":560,"d":"560 lei"},null,null,{"v":250,"d":"250 lei"},null,{"v":810,"d":"810 lei"}]
[null,null,"Total general",{"v":685,"d":"685 lei"},{"v":20,"d":"20 lei"},{"v":125,"d":"125 lei"},{"v":375,"d":"375 lei"},{"v":95,"d":"95 lei"},{"v":1300,"d":"1,300 lei"}]
{"$rows_empty":83}
[null,"Dată","Cumpărător","Tip","Sumă"]
[null,"2017-01-01","Tata","Cadouri",{"v":95,"d":"95 lei"}]
[null,"2017-01-15","Mama","Alimente",{"v":325,"d":"325 lei"}]
[null,"2017-01-17","Mama","Bilete",{"v":250,"d":"250 lei"}]
[null,"2017-01-21","Tata","Alimente",{"v":125,"d":"125 lei"}]
[null,"2017-02-02","Mama","Alimente",{"v":235,"d":"235 lei"}]
[null,"2017-02-20","Cătălina","Muzică",{"v":20,"d":"20 lei"}]
[null,"2017-02-25","Cătălina","Bilete",{"v":125,"d":"125 lei"}]
[null,"2017-02-25","Cătălina","Sport",{"v":125,"d":"125 lei"}]

{"sheet":"5","index":5,"n_rows":108,"n_cols":9,"rows_kept":108}
["Dacă raportul PivotTable este greu de înțeles, încercați aceasta: Citiți de la stânga, apoi de sus, apoi de jos. În exemplul de mai jos, Tata este în celula C12, Alimente pentru 125 lei în celula D12, Cadouri pentru 95 lei în celula E12 și un Total general de 220 lei în celula I12. Rândurile 13 și 14 arată detaliile pentru Cătălina și Mama, iar rândul 15 afișează Totalul general."]
["Pentru a continua acest tutorial, apăsați CTRL+PAGE DOWN. Pentru a trece la foaia anterioară, apăsați CTRL+PAGE UP."]
{"$rows_empty":8}
[null,null,"Sumă de Sumă","Tip"]
[null,null,"Cumpărător","Alimente","Cadouri","Muzică","Sport","Bilete","Total general"]
[null,null,"Tata",{"v":125,"d":"125 lei"},{"v":95,"d":"95 lei"},{"$nulls":3},{"v":220,"d":"220 lei"}]
[null,null,"Cătălina",null,null,{"v":20,"d":"20 lei"},{"v":125,"d":"125 lei"},{"v":125,"d":"125 lei"},{"v":270,"d":"270 lei"}]
[null,null,"Mama",{"v":560,"d":"560 lei"},{"$nulls":3},{"v":250,"d":"250 lei"},{"v":810,"d":"810 lei"}]
[null,null,"Total general",{"v":685,"d":"685 lei"},{"v":95,"d":"95 lei"},{"v":20,"d":"20 lei"},{"v":125,"d":"125 lei"},{"v":375,"d":"375 lei"},{"v":1300,"d":"1,300 lei"}]
{"$rows_empty":83}
[null,"Dată","Cumpărător","Tip","Sumă"]
[null,"2017-01-01","Tata","Cadouri",{"v":95,"d":"95 lei"}]
[null,"2017-01-15","Mama","Alimente",{"v":325,"d":"325 lei"}]
[null,"2017-01-17","Mama","Bilete",{"v":250,"d":"250 lei"}]
[null,"2017-01-21","Tata","Alimente",{"v":125,"d":"125 lei"}]
[null,"2017-02-02","Mama","Alimente",{"v":235,"d":"235 lei"}]
[null,"2017-02-20","Cătălina","Muzică",{"v":20,"d":"20 lei"}]
[null,"2017-02-25","Cătălina","Bilete",{"v":125,"d":"125 lei"}]
[null,"2017-02-25","Cătălina","Sport",{"v":125,"d":"125 lei"}]

{"sheet":"6","index":6,"n_rows":3,"n_cols":1,"rows_kept":3}
["Nu faceți acest lucru acum, însă după ce veți mai parcurge câțiva pași veți lucra cu un PivotTable. Primul lucru pe care îl veți face va fi să creați detalii în câmpul Coloane. Veți face acest lucru plasând câmpul Tip în zona de câmp Coloane."]
["O imagine a listei de Câmpuri PivotTable prezintă un cursor săgeată glisând câmpul Tip în zona Coloane."]
["Pentru a continua acest tutorial, apăsați CTRL+PAGE DOWN. Pentru a trece la foaia anterioară, apăsați CTRL+PAGE UP."]

{"sheet":"7","index":7,"n_rows":108,"n_cols":9,"rows_kept":108}
["1. Zona PivotTable pentru acest exemplu se află în celulele B14-C18. Navigați la oricare dintre aceste celule."]
["2. Apăsați ALT+JZ, L pentru a lansa lista de Câmpuri PivotTable. Focalizarea va fi implicită la caseta text Căutare: Editare „Căutare”"]
["3. Apăsați tastele săgeată pentru a selecta câmpul Tip. După ce l-ați selectat, apăsați BARA DE SPAȚIU pentru a adăuga câmpul Tip la zona Rânduri. "]
["4. Apăsați pe Tab pentru a selecta câmpul Tip. Apăsați Enter, apoi apăsați tastele săgeată pentru a selecta Se mută la etichetele de coloane și apăsați Enter pentru a adăuga câmpul Tip în zona Coloane. Apăsați ALT+JZ+L pentru ieși din panoul Câmpuri PivotTable."]
["Pentru a continua acest tutorial, apăsați CTRL+PAGE DOWN. Pentru a trece la foaia anterioară, apăsați CTRL+PAGE UP."]
[]
[]
[]
[{"$nulls":8},{"$f":"IF(AND($B$15=\"Cumpărător\",$H$18=810),\"Felicitări! Ați amplasat\",\" \")","v":" "}]
[{"$nulls":8},{"$f":"IF(AND($B$15=\"Cumpărător\",$H$18=810),\"primul câmp coloană.\",\" \")","v":" "}]
[{"$nulls":8},{"$f":"IF(AND($B$15=\"Cumpărător\",$H$18=810),\"Faceți clic pe Următorul\",\" \")","v":" "}]
[{"$nulls":8},{"$f":"IF(AND($B$15=\"Cumpărător\",$H$18=810),\"pentru a continua...\",\" \")","v":" "}]
[]
[null,"Cumpărător","Sumă de Sumă"]
[null,"Tata",{"v":220,"d":"220 lei"}]
[null,"Cătălina",{"v":270,"d":"270 lei"}]
[null,"Mama",{"v":810,"d":"810 lei"}]
[null,"Total general",{"v":1300,"d":"1,300 lei"}]
{"$rows_empty":81}
[null,"Dată","Cumpărător","Tip","Sumă"]
[null,"2017-01-01","Tata","Cadouri",{"v":95,"d":"95 lei"}]
[null,"2017-01-15","Mama","Alimente",{"v":325,"d":"325 lei"}]
[null,"2017-01-17","Mama","Bilete",{"v":250,"d":"250 lei"}]
[null,"2017-01-21","Tata","Alimente",{"v":125,"d":"125 lei"}]
[null,"2017-02-02","Mama","Alimente",{"v":235,"d":"235 lei"}]
[null,"2017-02-20","Cătălina","Muzică",{"v":20,"d":"20 lei"}]
[null,"2017-02-25","Cătălina","Bilete",{"v":125,"d":"125 lei"}]
[null,"2017-02-25","Cătălina","Sport",{"v":125,"d":"125 lei"}]

{"sheet":"8","index":8,"n_rows":108,"n_cols":9,"rows_kept":108}
["Haideți să revizuim raportul PivotTable pe care tocmai l-ați realizat. De această dată, am adăugat culori speciale pentru a diferenția câmpurile rând, coloană și valoare."]
["Câmpul rând merge de la celula C11 la C14 și este colorat cu galben."]
["Câmpul coloană merge de la celula D9 la H10 și este colorat cu portocaliu."]
["Câmpul valoare merge de la celula D11 la H13 și este colorat cu albastru."]
["Pentru a continua acest tutorial, apăsați CTRL+PAGE DOWN. Pentru a trece la foaia anterioară, apăsați CTRL+PAGE UP."]
[]
[]
[]
[]
[null,null,"Sumă de Sumă","Tip"]
[null,null,"Cumpărător","Alimente","Cadouri","Muzică","Sport","Bilete","Total general"]
[null,null,"Tata",{"v":125,"d":"125 lei"},{"v":95,"d":"95 lei"},{"$nulls":3},{"v":220,"d":"220 lei"}]
[null,null,"Cătălina",null,null,{"v":20,"d":"20 lei"},{"v":125,"d":"125 lei"},{"v":125,"d":"125 lei"},{"v":270,"d":"270 lei"}]
[null,null,"Mama",{"v":560,"d":"560 lei"},{"$nulls":3},{"v":250,"d":"250 lei"},{"v":810,"d":"810 lei"}]
[null,null,"Total general",{"v":685,"d":"685 lei"},{"v":95,"d":"95 lei"},{"v":20,"d":"20 lei"},{"v":125,"d":"125 lei"},{"v":375,"d":"375 lei"},{"v":1300,"d":"1,300 lei"}]
{"$rows_empty":84}
[null,"Dată","Cumpărător","Tip","Sumă"]
[null,"2017-01-01","Tata","Cadouri",{"v":95,"d":"95 lei"}]
[null,"2017-01-15","Mama","Alimente",{"v":325,"d":"325 lei"}]
[null,"2017-01-17","Mama","Bilete",{"v":250,"d":"250 lei"}]
[null,"2017-01-21","Tata","Alimente",{"v":125,"d":"125 lei"}]
[null,"2017-02-02","Mama","Alimente",{"v":235,"d":"235 lei"}]
[null,"2017-02-20","Cătălina","Muzică",{"v":20,"d":"20 lei"}]
[null,"2017-02-25","Cătălina","Bilete",{"v":125,"d":"125 lei"}]
[null,"2017-02-25","Cătălina","Sport",{"v":125,"d":"125 lei"}]

{"sheet":"9","index":9,"n_rows":3,"n_cols":1,"rows_kept":3}
["Iată o altă modalitate de a gândi: Câmpul rând este în partea stângă, iar câmpul coloană în partea de sus. Fiecare oferă o condiție pentru câmpul valoare, care le rezumă."]
["O imagine conceptuală afișează o zonă dreptunghiulară cu 4 secțiuni, cu câmpul rând în stânga jos, cu galben, câmpul coloană în dreapta sus, cu portocaliu și câmpul valoare în dreapta jos, cu albastru."]
["Pentru a continua acest tutorial, apăsați CTRL+PAGE DOWN. Pentru a trece la foaia anterioară, apăsați CTRL+PAGE UP."]

{"sheet":"10","index":10,"n_rows":3,"n_cols":1,"rows_kept":3}
["Gândiți-vă astfel încât atunci când utilizați lista de câmpuri. Câmpul rând este în partea stângă, iar câmpul coloană în partea de sus. Fiecare oferă o condiție pentru câmpul valoare, care le rezumă."]
["O imagine conceptuală afișează lista de Câmpuri PivotTable afișată cu câmpul rând în stânga jos, cu galben, câmpul coloană în dreapta sus, cu portocaliu și câmpul valoare în dreapta jos, cu albastru."]
["Pentru a continua acest tutorial, apăsați CTRL+PAGE DOWN. Pentru a trece la foaia anterioară, apăsați CTRL+PAGE UP."]

{"sheet":"11","index":11,"n_rows":121,"n_cols":24,"rows_kept":121}
["Un lucru de reținut: Dacă un câmp coloană adaugă multe coloane la un raport PivotTable, îl va face foarte lat. "]
["În acest exemplu, raportul PivotTable merge acum de la celula C10 la X15, deoarece câmpul coloană a adăugat 20 de coloane noi. Sunt multe coloane! Acest lucru îi va face pe utilizatori să defileze mult..."]
["Pentru a continua acest tutorial, apăsați CTRL+PAGE DOWN. Pentru a trece la foaia anterioară, apăsați CTRL+PAGE UP."]
[]
[]
[]
[]
[]
[]
[null,null,"Sumă de Sumă","Tip"]
[null,null,"Cumpărător","Cărți","Alimente","Benzină","Muzică","Sport","Bilete","Mese","Electricitate","Medicale","Stomatologice","Taxe","Asigurare auto","Parcare","Electronice","Bilete de avion","Îmbrăcăminte","Lecții de muzică","Taxe club","Asigurare sănătate","Asigurare locuință","Total general"]
[null,null,"Tata",{"$nulls":4},{"v":1000,"d":"1,000 lei"},{"$nulls":5},{"v":500,"d":"500 lei"},{"$nulls":3},{"v":500,"d":"500 lei"},{"$nulls":5},{"v":2000,"d":"2,000 lei"}]
[null,null,"Cătălina",{"v":250,"d":"250 lei"},null,null,{"v":20,"d":"20 lei"},null,{"v":125,"d":"125 lei"},{"v":20,"d":"20 lei"},{"$nulls":5},{"v":20,"d":"20 lei"},{"v":125,"d":"125 lei"},null,{"v":125,"d":"125 lei"},{"v":250,"d":"250 lei"},{"$nulls":3},{"v":935,"d":"935 lei"}]
[null,null,"Mama",null,{"v":470,"d":"470 lei"},{"v":74,"d":"74 lei"},{"$nulls":4},{"v":70,"d":"70 lei"},{"v":74,"d":"74 lei"},{"v":235,"d":"235 lei"},null,{"v":74,"d":"74 lei"},{"$nulls":5},{"v":125,"d":"125 lei"},{"v":70,"d":"70 lei"},{"v":235,"d":"235 lei"},{"v":1427,"d":"1,427 lei"}]
[null,null,"Total general",{"v":250,"d":"250 lei"},{"v":470,"d":"470 lei"},{"v":74,"d":"74 lei"},{"v":20,"d":"20 lei"},{"v":1000,"d":"1,000 lei"},{"v":125,"d":"125 lei"},{"v":20,"d":"20 lei"},{"v":70,"d":"70 lei"},{"v":74,"d":"74 lei"},{"v":235,"d":"235 lei"},{"v":500,"d":"500 lei"},{"v":74,"d":"74 lei"},{"v":20,"d":"20 lei"},{"v":125,"d":"125 lei"},{"v":500,"d":"500 lei"},{"v":125,"d":"125 lei"},{"v":250,"d":"250 lei"},{"v":125,"d":"125 lei"},{"v":70,"d":"70 lei"},{"v":235,"d":"235 lei"},{"v":4362,"d":"4,362 lei"}]
{"$rows_empty":84}
[null,"Dată","Cumpărător","Tip","Sumă"]
[null,"2017-01-17","Tata","Sport",{"v":1000,"d":"1,000 lei"}]
[null,"2017-01-17","Tata","Bilete de avion",{"v":500,"d":"500 lei"}]
[null,"2017-01-17","Tata","Taxe",{"v":500,"d":"500 lei"}]
[null,"2017-02-20","Cătălina","Muzică",{"v":20,"d":"20 lei"}]
[null,"2017-02-25","Cătălina","Bilete",{"v":125,"d":"125 lei"}]
[null,"2017-01-21","Cătălina","Cărți",{"v":250,"d":"250 lei"}]
[null,"2017-02-20","Cătălina","Mese",{"v":20,"d":"20 lei"}]
[null,"2017-02-25","Cătălina","Îmbrăcăminte",{"v":125,"d":"125 lei"}]
[null,"2017-01-21","Cătălina","Lecții de muzică",{"v":250,"d":"250 lei"}]
[null,"2017-02-20","Cătălina","Parcare",{"v":20,"d":"20 lei"}]
[null,"2017-02-25","Cătălina","Electronice",{"v":125,"d":"125 lei"}]
[null,"2017-01-01","Mama","Benzină",{"v":74,"d":"74 lei"}]
[null,"2017-01-15","Mama","Alimente",{"v":235,"d":"235 lei"}]
[null,"2017-01-21","Mama","Taxe club",{"v":125,"d":"125 lei"}]
[null,"2017-02-02","Mama","Alimente",{"v":235,"d":"235 lei"}]
[null,"2017-01-01","Mama","Medicale",{"v":74,"d":"74 lei"}]
[null,"2017-01-15","Mama","Electricitate",{"v":70,"d":"70 lei"}]
[null,"2017-02-02","Mama","Stomatologice",{"v":235,"d":"235 lei"}]
[null,"2017-01-01","Mama","Asigurare auto",{"v":74,"d":"74 lei"}]
[null,"2017-01-15","Mama","Asigurare sănătate",{"v":70,"d":"70 lei"}]
[null,"2017-02-02","Mama","Asigurare locuință",{"v":235,"d":"235 lei"}]

{"sheet":"12","index":12,"n_rows":119,"n_cols":5,"rows_kept":119}
["Există o alternativă la rapoartele PivotTable foarte late: puteți utiliza un al doilea câmp rând în schimb. Un al doilea câmp rând va apărea indentat sub primul câmp rând."]
["În acest exemplu, există un raport PivotTable de la celula D8 la E32. Afișează Tata, Cătălina și Mama drept prime câmpuri rând în coloana D, iar tipurile de cheltuieli sunt dedesubt, ca al doilea câmp rând, cu denumiri precum Sport, Bilete de avion, Mese în oraș etc."]
["DE REȚINUT\nUn al doilea câmp rând creează un raport PivotTable orientat pe verticală, nu pe orizontală. Unele persoane găsesc rapoartele PivotTable pe verticală mai ușor de citit, deoarece ele nu necesită la fel de multă defilare în lateral."]
["VORBIREA CELULELOR ÎN EXCEL\nUneori, utilizatorii numesc al doilea câmp rând „câmp rând secundar”."]
["Pentru a continua acest tutorial, apăsați CTRL+PAGE DOWN. Pentru a trece la foaia anterioară, apăsați CTRL+PAGE UP."]
[]
[]
[{"$nulls":3},"Etichete de rânduri","Sumă de Sumă"]
[{"$nulls":3},"Tata",{"v":2000,"d":"2,000 lei"}]
[{"$nulls":3},"Sport",{"v":1000,"d":"1,000 lei"}]
[{"$nulls":3},"Taxe",{"v":500,"d":"500 lei"}]
[{"$nulls":3},"Bilete de avion",{"v":500,"d":"500 lei"}]
[{"$nulls":3},"Cătălina",{"v":935,"d":"935 lei"}]
[{"$nulls":3},"Cărți",{"v":250,"d":"250 lei"}]
[{"$nulls":3},"Muzică",{"v":20,"d":"20 lei"}]
[{"$nulls":3},"Bilete",{"v":125,"d":"125 lei"}]
[{"$nulls":3},"Mese",{"v":20,"d":"20 lei"}]
[{"$nulls":3},"Parcare",{"v":20,"d":"20 lei"}]
[{"$nulls":3},"Electronice",{"v":125,"d":"125 lei"}]
[{"$nulls":3},"Îmbrăcăminte",{"v":125,"d":"125 lei"}]
[{"$nulls":3},"Lecții de muzică",{"v":250,"d":"250 lei"}]
[{"$nulls":3},"Mama",{"v":1427,"d":"1,427 lei"}]
[{"$nulls":3},"Alimente",{"v":470,"d":"470 lei"}]
[{"$nulls":3},"Benzină",{"v":74,"d":"74 lei"}]
[{"$nulls":3},"Electricitate",{"v":70,"d":"70 lei"}]
[{"$nulls":3},"Medicale",{"v":74,"d":"74 lei"}]
[{"$nulls":3},"Stomatologice",{"v":235,"d":"235 lei"}]
[{"$nulls":3},"Asigurare auto",{"v":74,"d":"74 lei"}]
[{"$nulls":3},"Taxe club",{"v":125,"d":"125 lei"}]
[{"$nulls":3},"Asigurare sănătate",{"v":70,"d":"70 lei"}]
[{"$nulls":3},"Asigurare locuință",{"v":235,"d":"235 lei"}]
[{"$nulls":3},"Total general",{"v":4362,"d":"4,362 lei"}]
{"$rows_empty":65}
[null,"Dată","Cumpărător","Tip","Sumă"]
[null,"2017-01-17","Tata","Sport",{"v":1000,"d":"1,000 lei"}]
[null,"2017-01-17","Tata","Bilete de avion",{"v":500,"d":"500 lei"}]
[null,"2017-01-17","Tata","Taxe",{"v":500,"d":"500 lei"}]
[null,"2017-02-20","Cătălina","Muzică",{"v":20,"d":"20 lei"}]
[null,"2017-02-25","Cătălina","Bilete",{"v":125,"d":"125 lei"}]
[null,"2017-01-21","Cătălina","Cărți",{"v":250,"d":"250 lei"}]
[null,"2017-02-20","Cătălina","Mese",{"v":20,"d":"20 lei"}]
[null,"2017-02-25","Cătălina","Îmbrăcăminte",{"v":125,"d":"125 lei"}]
[null,"2017-01-21","Cătălina","Lecții de muzică",{"v":250,"d":"250 lei"}]
[null,"2017-02-20","Cătălina","Parcare",{"v":20,"d":"20 lei"}]
[null,"2017-02-25","Cătălina","Electronice",{"v":125,"d":"125 lei"}]
[null,"2017-01-01","Mama","Benzină",{"v":74,"d":"74 lei"}]
[null,"2017-01-15","Mama","Alimente",{"v":235,"d":"235 lei"}]
[null,"2017-01-21","Mama","Taxe club",{"v":125,"d":"125 lei"}]
[null,"2017-02-02","Mama","Alimente",{"v":235,"d":"235 lei"}]
[null,"2017-01-01","Mama","Medicale",{"v":74,"d":"74 lei"}]
[null,"2017-01-15","Mama","Electricitate",{"v":70,"d":"70 lei"}]
[null,"2017-02-02","Mama","Stomatologice",{"v":235,"d":"235 lei"}]
[null,"2017-01-01","Mama","Asigurare auto",{"v":74,"d":"74 lei"}]
[null,"2017-01-15","Mama","Asigurare sănătate",{"v":70,"d":"70 lei"}]
[null,"2017-02-02","Mama","Asigurare locuință",{"v":235,"d":"235 lei"}]

{"sheet":"13","index":13,"n_rows":3,"n_cols":1,"rows_kept":3}
["Pe foaia următoare veți adăuga un al doilea câmp rând. Veți face acest lucru prin plasarea câmpului Tip sub câmpul Cumpărător în câmpul Rânduri."]
["O imagine a listei de Câmpuri PivotTable prezintă un cursor săgeată glisând câmpul Tip în zona Rânduri."]
["Pentru a continua acest tutorial, apăsați CTRL+PAGE DOWN. Pentru a trece la foaia anterioară, apăsați CTRL+PAGE UP."]

{"sheet":"14","index":14,"n_rows":122,"n_cols":9,"rows_kept":122}
["1. Zona PivotTable pentru acest exemplu se află în celulele B14-C18. Navigați la oricare dintre aceste celule. "]
["2. Apăsați ALT+JZ, L pentru a lansa lista de câmpuri PivotTable. Caseta text Căutare va avea focalizarea în mod implicit: „Tastați cuvintele ce trebuie căutate” pentru a le edita. Nu tastați nimic, în schimb apăsați tasta Tab o dată. NOTĂ: dacă lista de câmpuri nu se lansează, apăsați ALT+JZ, L din nou."]
["3. Apăsați tastele săgeată pentru a vă deplasa la câmpul Tip. Apăsați BARA DE SPAȚIU pentru a adăuga câmpul Tip la zona Rânduri. "]
["4. Apăsați tasta ESC pentru a ieși din panoul Câmpuri PivotTable. "]
["Pentru a continua acest tutorial, apăsați CTRL+PAGE DOWN. Pentru a trece la foaia anterioară, apăsați CTRL+PAGE UP.",{"$nulls":7},{"$f":"IF(AND($B$16=\"Bilete de avion\",$C$35=74),\"Bravo! Ați adăugat\",\" \")","v":" "}]
[{"$nulls":8},{"$f":"IF(AND($B$16=\"Bilete de avion\",$C$35=74),\"al doilea câmp rând\",\" \")","v":" "}]
[{"$nulls":8},{"$f":"IF(AND($B$16=\"Bilete de avion\",$C$35=74),\"în raportul PivotTable. Defilați \",\" \")","v":" "}]
[{"$nulls":8},{"$f":"IF(AND($B$16=\"Bilete de avion\",$C$35=74),\"în jos și faceți clic pe Următorul...\",\" \")","v":" "}]
[]
[]
[]
[]
[]
[null,"Etichete de rânduri","Sumă de Sumă"]
[null,"Tata",{"v":2000,"d":"2,000 lei"}]
[null,"Cătălina",{"v":935,"d":"935 lei"}]
[null,"Mama",{"v":1427,"d":"1,427 lei"}]
[null,"Total general",{"v":4362,"d":"4,362 lei"}]
{"$rows_empty":82}
[null,"Dată","Cumpărător","Tip","Sumă"]
[null,"2017-01-17","Tata","Sport",{"v":1000,"d":"1,000 lei"}]
[null,"2017-01-17","Tata","Bilete de avion",{"v":500,"d":"500 lei"}]
[null,"2017-01-17","Tata","Taxe",{"v":500,"d":"500 lei"}]
[null,"2017-02-20","Cătălina","Muzică",{"v":20,"d":"20 lei"}]
[null,"2017-02-25","Cătălina","Bilete",{"v":125,"d":"125 lei"}]
[null,"2017-01-21","Cătălina","Cărți",{"v":250,"d":"250 lei"}]
[null,"2017-02-20","Cătălina","Mese",{"v":20,"d":"20 lei"}]
[null,"2017-02-25","Cătălina","Îmbrăcăminte",{"v":125,"d":"125 lei"}]
[null,"2017-01-21","Cătălina","Lecții de muzică",{"v":250,"d":"250 lei"}]
[null,"2017-02-20","Cătălina","Parcare",{"v":20,"d":"20 lei"}]
[null,"2017-02-25","Cătălina","Electronice",{"v":125,"d":"125 lei"}]
[null,"2017-01-01","Mama","Benzină",{"v":74,"d":"74 lei"}]
[null,"2017-01-15","Mama","Alimente",{"v":235,"d":"235 lei"}]
[null,"2017-01-21","Mama","Taxe club",{"v":125,"d":"125 lei"}]
[null,"2017-02-02","Mama","Alimente",{"v":235,"d":"235 lei"}]
[null,"2017-01-01","Mama","Medicale",{"v":74,"d":"74 lei"}]
[null,"2017-01-15","Mama","Electricitate",{"v":70,"d":"70 lei"}]
[null,"2017-02-02","Mama","Stomatologice",{"v":235,"d":"235 lei"}]
[null,"2017-01-01","Mama","Asigurare auto",{"v":74,"d":"74 lei"}]
[null,"2017-01-15","Mama","Asigurare sănătate",{"v":70,"d":"70 lei"}]
[null,"2017-02-02","Mama","Asigurare locuință",{"v":235,"d":"235 lei"}]

{"sheet":"15","index":15,"n_rows":121,"n_cols":7,"rows_kept":121}
["Dacă trebuie să simplificați raportul PivotTable, puteți restrânge datele pentru al doilea câmp rând „în sus”, eliberând spațiu. "]
["Raportul PivotTable pentru acest exemplu se află în celulele F7-G31. Selectați celula F8 pentru a alege primul câmp rând pentru Tata. Pe urmă, apăsați Alt+JZ > X pentru a extinde al doilea câmp sau E pentru a-l restrânge."]
["Pentru a continua acest tutorial, apăsați CTRL+PAGE DOWN. Pentru a trece la foaia anterioară, apăsați CTRL+PAGE UP."]
[]
[]
[{"$nulls":5},{"$f":"IF(AND($F$9=\"Cătălina\",$G$9=935),\"Frumos!\",\" \")","v":" "}]
[{"$nulls":5},"Etichete de rânduri","Sumă de Sumă"]
[{"$nulls":5},"Tata",{"v":2000,"d":"2,000 lei"}]
[{"$nulls":5},"Sport",{"v":1000,"d":"1,000 lei"}]
[{"$nulls":5},"Taxe",{"v":500,"d":"500 lei"}]
[{"$nulls":5},"Bilete de avion",{"v":500,"d":"500 lei"}]
[{"$nulls":5},"Cătălina",{"v":935,"d":"935 lei"}]
[{"$nulls":5},"Cărți",{"v":250,"d":"250 lei"}]
[{"$nulls":5},"Mese",{"v":20,"d":"20 lei"}]
[{"$nulls":5},"Electronice",{"v":125,"d":"125 lei"}]
[{"$nulls":5},"Muzică",{"v":20,"d":"20 lei"}]
[{"$nulls":5},"Parcare",{"v":20,"d":"20 lei"}]
[{"$nulls":5},"Bilete",{"v":125,"d":"125 lei"}]
[{"$nulls":5},"Îmbrăcăminte",{"v":125,"d":"125 lei"}]
[{"$nulls":5},"Lecții de muzică",{"v":250,"d":"250 lei"}]
[{"$nulls":5},"Mama",{"v":1427,"d":"1,427 lei"}]
[{"$nulls":5},"Asigurare auto",{"v":74,"d":"74 lei"}]
[{"$nulls":5},"Stomatologice",{"v":235,"d":"235 lei"}]
[{"$nulls":5},"Electricitate",{"v":70,"d":"70 lei"}]
[{"$nulls":5},"Alimente",{"v":470,"d":"470 lei"}]
[{"$nulls":5},"Benzină",{"v":74,"d":"74 lei"}]
[{"$nulls":5},"Medicale",{"v":74,"d":"74 lei"}]
[{"$nulls":5},"Taxe club",{"v":125,"d":"125 lei"}]
[{"$nulls":5},"Asigurare sănătate",{"v":70,"d":"70 lei"}]
[{"$nulls":5},"Asigurare locuință",{"v":235,"d":"235 lei"}]
[{"$nulls":5},"Total general",{"v":4362,"d":"4,362 lei"}]
{"$rows_empty":68}
[null,"Dată","Cumpărător","Tip","Sumă"]
[null,"2017-01-17","Tata","Sport",{"v":1000,"d":"1,000 lei"}]
[null,"2017-01-17","Tata","Bilete de avion",{"v":500,"d":"500 lei"}]
[null,"2017-01-17","Tata","Taxe",{"v":500,"d":"500 lei"}]
[null,"2017-02-20","Cătălina","Muzică",{"v":20,"d":"20 lei"}]
[null,"2017-02-25","Cătălina","Bilete",{"v":125,"d":"125 lei"}]
[null,"2017-01-21","Cătălina","Cărți",{"v":250,"d":"250 lei"}]
[null,"2017-02-20","Cătălina","Mese",{"v":20,"d":"20 lei"}]
[null,"2017-02-25","Cătălina","Îmbrăcăminte",{"v":125,"d":"125 lei"}]
[null,"2017-01-21","Cătălina","Lecții de muzică",{"v":250,"d":"250 lei"}]
[null,"2017-02-20","Cătălina","Parcare",{"v":20,"d":"20 lei"}]
[null,"2017-02-25","Cătălina","Electronice",{"v":125,"d":"125 lei"}]
[null,"2017-01-01","Mama","Benzină",{"v":74,"d":"74 lei"}]
[null,"2017-01-15","Mama","Alimente",{"v":235,"d":"235 lei"}]
[null,"2017-01-21","Mama","Taxe club",{"v":125,"d":"125 lei"}]
[null,"2017-02-02","Mama","Alimente",{"v":235,"d":"235 lei"}]
[null,"2017-01-01","Mama","Medicale",{"v":74,"d":"74 lei"}]
[null,"2017-01-15","Mama","Electricitate",{"v":70,"d":"70 lei"}]
[null,"2017-02-02","Mama","Stomatologice",{"v":235,"d":"235 lei"}]
[null,"2017-01-01","Mama","Asigurare auto",{"v":74,"d":"74 lei"}]
[null,"2017-01-15","Mama","Asigurare sănătate",{"v":70,"d":"70 lei"}]
[null,"2017-02-02","Mama","Asigurare locuință",{"v":235,"d":"235 lei"}]

{"sheet":"16","index":16,"n_rows":121,"n_cols":7,"rows_kept":121}
["De asemenea, puteți restrânge sau extinde al doilea câmp rând, pentru a simplifica și mai mult raportul PivotTable."]
["Iată secretul"]
["Selectați zona de date PivotTable de la celula F7 la G31, apoi apăsați ALT+JZ > E pentru a restrânge întregul grup. De partea cealaltă, ALT+JZ > X va extinde tot grupul."]
["Pentru a continua acest tutorial, apăsați CTRL+PAGE DOWN. Pentru a trece la foaia anterioară, apăsați CTRL+PAGE UP."]
[]
[{"$nulls":5},{"$f":"IF(AND($F$9=\"Cătălina\",$G$9=935),\"Așa da!\",\" \")","v":" "}]
[{"$nulls":5},"Etichete de rânduri","Sumă de Sumă"]
[{"$nulls":5},"Tata",{"v":2000,"d":"2,000 lei"}]
[{"$nulls":5},"Sport",{"v":1000,"d":"1,000 lei"}]
[{"$nulls":5},"Taxe",{"v":500,"d":"500 lei"}]
[{"$nulls":5},"Bilete de avion",{"v":500,"d":"500 lei"}]
[{"$nulls":5},"Cătălina",{"v":935,"d":"935 lei"}]
[{"$nulls":5},"Cărți",{"v":250,"d":"250 lei"}]
[{"$nulls":5},"Mese",{"v":20,"d":"20 lei"}]
[{"$nulls":5},"Electronice",{"v":125,"d":"125 lei"}]
[{"$nulls":5},"Muzică",{"v":20,"d":"20 lei"}]
[{"$nulls":5},"Parcare",{"v":20,"d":"20 lei"}]
[{"$nulls":5},"Bilete",{"v":125,"d":"125 lei"}]
[{"$nulls":5},"Îmbrăcăminte",{"v":125,"d":"125 lei"}]
[{"$nulls":5},"Lecții de muzică",{"v":250,"d":"250 lei"}]
[{"$nulls":5},"Mama",{"v":1427,"d":"1,427 lei"}]
[{"$nulls":5},"Asigurare auto",{"v":74,"d":"74 lei"}]
[{"$nulls":5},"Stomatologice",{"v":235,"d":"235 lei"}]
[{"$nulls":5},"Electricitate",{"v":70,"d":"70 lei"}]
[{"$nulls":5},"Alimente",{"v":470,"d":"470 lei"}]
[{"$nulls":5},"Benzină",{"v":74,"d":"74 lei"}]
[{"$nulls":5},"Medicale",{"v":74,"d":"74 lei"}]
[{"$nulls":5},"Taxe club",{"v":125,"d":"125 lei"}]
[{"$nulls":5},"Asigurare sănătate",{"v":70,"d":"70 lei"}]
[{"$nulls":5},"Asigurare locuință",{"v":235,"d":"235 lei"}]
[{"$nulls":5},"Total general",{"v":4362,"d":"4,362 lei"}]
{"$rows_empty":68}
[null,"Dată","Cumpărător","Tip","Sumă"]
[null,"2017-01-17","Tata","Sport",{"v":1000,"d":"1,000 lei"}]
[null,"2017-01-17","Tata","Bilete de avion",{"v":500,"d":"500 lei"}]
[null,"2017-01-17","Tata","Taxe",{"v":500,"d":"500 lei"}]
[null,"2017-02-20","Cătălina","Muzică",{"v":20,"d":"20 lei"}]
[null,"2017-02-25","Cătălina","Bilete",{"v":125,"d":"125 lei"}]
[null,"2017-01-21","Cătălina","Cărți",{"v":250,"d":"250 lei"}]
[null,"2017-02-20","Cătălina","Mese",{"v":20,"d":"20 lei"}]
[null,"2017-02-25","Cătălina","Îmbrăcăminte",{"v":125,"d":"125 lei"}]
[null,"2017-01-21","Cătălina","Lecții de muzică",{"v":250,"d":"250 lei"}]
[null,"2017-02-20","Cătălina","Parcare",{"v":20,"d":"20 lei"}]
[null,"2017-02-25","Cătălina","Electronice",{"v":125,"d":"125 lei"}]
[null,"2017-01-01","Mama","Benzină",{"v":74,"d":"74 lei"}]
[null,"2017-01-15","Mama","Alimente",{"v":235,"d":"235 lei"}]
[null,"2017-01-21","Mama","Taxe club",{"v":125,"d":"125 lei"}]
[null,"2017-02-02","Mama","Alimente",{"v":235,"d":"235 lei"}]
[null,"2017-01-01","Mama","Medicale",{"v":74,"d":"74 lei"}]
[null,"2017-01-15","Mama","Electricitate",{"v":70,"d":"70 lei"}]
[null,"2017-02-02","Mama","Stomatologice",{"v":235,"d":"235 lei"}]
[null,"2017-01-01","Mama","Asigurare auto",{"v":74,"d":"74 lei"}]
[null,"2017-01-15","Mama","Asigurare sănătate",{"v":70,"d":"70 lei"}]
[null,"2017-02-02","Mama","Asigurare locuință",{"v":235,"d":"235 lei"}]

{"sheet":"17","index":17,"n_rows":107,"n_cols":13,"rows_kept":107}
["Puteți avea mai multe câmpuri coloană. Și acestea pot fi restrânse sau extinse."]
["Raportul PivotTable pentru acest exemplu merge de la celula B13 la M19. În acest caz, avem o categorie Tip în secțiunea Coloane, care include elementele pentru Alimente și Utilități."]
["ÎNCERCAȚI ACEASTA\nSelectați Alimente în celula C14 și apăsați ALT+JZ > E pentru a restrânge întregul câmp. ALT+JZ > X îl va extinde."]
["Pentru a continua acest tutorial, apăsați CTRL+PAGE DOWN. Pentru a trece la foaia anterioară, apăsați CTRL+PAGE UP."]
{"$rows_empty":7}
[null,null,{"$f":"IF(AND($C$16=398,$D$15=\"Ian\"),\"Bună treabă!\",\" \")","v":" "}]
[null,"Sumă de Sumă","Etichete de coloane"]
[null,null,"Alimente",{"$nulls":3},"Alimente Total","Utilități",{"$nulls":3},"Utilități Total","Total general"]
[null,"Etichete de rânduri","Ian","Feb","Mar","Apr",null,"Ian","Feb","Mar","Apr"]
[null,"Cătălina",{"v":74,"d":"74 lei"},{"v":74,"d":"74 lei"},{"v":125,"d":"125 lei"},{"v":125,"d":"125 lei"},{"v":398,"d":"398 lei"},{"$nulls":5},{"v":398,"d":"398 lei"}]
[null,"Tata",{"v":235,"d":"235 lei"},{"v":235,"d":"235 lei"},{"v":235,"d":"235 lei"},{"v":74,"d":"74 lei"},{"v":779,"d":"779 lei"},{"$nulls":5},{"v":779,"d":"779 lei"}]
[null,"Mama",{"$nulls":5},{"v":1000,"d":"1,000 lei"},{"v":1000,"d":"1,000 lei"},{"v":20,"d":"20 lei"},{"v":70,"d":"70 lei"},{"v":2090,"d":"2,090 lei"},{"v":2090,"d":"2,090 lei"}]
[null,"Total general",{"v":309,"d":"309 lei"},{"v":309,"d":"309 lei"},{"v":360,"d":"360 lei"},{"v":199,"d":"199 lei"},{"v":1177,"d":"1,177 lei"},{"v":1000,"d":"1,000 lei"},{"v":1000,"d":"1,000 lei"},{"v":20,"d":"20 lei"},{"v":70,"d":"70 lei"},{"v":2090,"d":"2,090 lei"},{"v":3267,"d":"3,267 lei"}]
{"$rows_empty":75}
[null,"Lună","Cumpărător","Tip","Sumă"]
[null,"Ian","Cătălina","Alimente",{"v":74,"d":"74 lei"}]
[null,"Ian","Tata","Alimente",{"v":235,"d":"235 lei"}]
[null,"Ian","Mama","Utilități",{"v":1000,"d":"1,000 lei"}]
[null,"Feb","Cătălina","Alimente",{"v":74,"d":"74 lei"}]
[null,"Feb","Tata","Alimente",{"v":235,"d":"235 lei"}]
[null,"Feb","Mama","Utilități",{"v":1000,"d":"1,000 lei"}]
[null,"Mar","Cătălina","Alimente",{"v":125,"d":"125 lei"}]
[null,"Mar","Tata","Alimente",{"v":235,"d":"235 lei"}]
[null,"Mar","Mama","Utilități",{"v":20,"d":"20 lei"}]
[null,"Apr","Cătălina","Alimente",{"v":125,"d":"125 lei"}]
[null,"Apr","Tata","Alimente",{"v":74,"d":"74 lei"}]
[null,"Apr","Mama","Utilități",{"v":70,"d":"70 lei"}]

{"sheet":"18","index":18,"n_rows":146,"n_cols":5,"rows_kept":146}
["De reținut: Dacă aveți nevoie de mai multe detalii, puteți adăuga mai multe câmpuri rând sau coloană. În acest exemplu, există trei câmpuri rând."]
["Raportul PivotTable pentru acest exemplu merge de la celula D8 la E29 și conține câmpuri pentru Anotimp, Cumpărător și Tip în coloana D, cu Sumă de Sumă în coloana E."]
["SFAT DE LA EXPERȚI\nDoar pentru că puteți adăuga o mulțime de câmpuri, nu înseamnă că trebuie s-o faceți. În acest exemplu, funcționează perfect. Însă uneori prea multe câmpuri, cu toate indentările lor, pot face raportul PivotTable prea complicat ca alte persoane să-l înțeleagă. "]
["Pentru a continua acest tutorial, apăsați CTRL+PAGE DOWN. Pentru a trece la foaia anterioară, apăsați CTRL+PAGE UP."]
[]
[]
[]
[{"$nulls":3},"Etichete de rânduri","Sumă de Sumă"]
[{"$nulls":3},"Toamnă",{"v":5425,"d":"5,425 lei"}]
[{"$nulls":3},"Mama",{"v":5425,"d":"5,425 lei"}]
[{"$nulls":3},"Asigurare",{"v":1272,"d":"1,272 lei"}]
[{"$nulls":3},"Chirie",{"v":3220,"d":"3,220 lei"}]
[{"$nulls":3},"Utilități",{"v":530,"d":"530 lei"}]
[{"$nulls":3},"Utilitare",{"v":403,"d":"403 lei"}]
[{"$nulls":3},"Primăvară",{"v":4760,"d":"4,760 lei"}]
[{"$nulls":3},"Tata",{"v":4760,"d":"4,760 lei"}]
[{"$nulls":3},"Asigurare",{"v":1040,"d":"1,040 lei"}]
[{"$nulls":3},"Chirie",{"v":2400,"d":"2,400 lei"}]
[{"$nulls":3},"Utilități",{"v":1320,"d":"1,320 lei"}]
[{"$nulls":3},"Vară",{"v":3473,"d":"3,473 lei"}]
[{"$nulls":3},"Mama",{"v":3473,"d":"3,473 lei"}]
[{"$nulls":3},"Asigurare",{"v":1080,"d":"1,080 lei"}]
[{"$nulls":3},"Chirie",{"v":1260,"d":"1,260 lei"}]
[{"$nulls":3},"Utilități",{"v":1133,"d":"1,133 lei"}]
[{"$nulls":3},"Iarnă",{"v":4100,"d":"4,100 lei"}]
[{"$nulls":3},"Tata",{"v":4100,"d":"4,100 lei"}]
[{"$nulls":3},"Asigurare",{"v":1030,"d":"1,030 lei"}]
[{"$nulls":3},"Chirie",{"v":1420,"d":"1,420 lei"}]
[{"$nulls":3},"Utilități",{"v":1650,"d":"1,650 lei"}]
[{"$nulls":3},"Total general",{"v":17758,"d":"17,758 lei"}]
{"$rows_empty":67}
[null,"Cumpărător","Anotimp","Tip","Sumă"]
[null,"Tata","Iarnă","Asigurare",{"v":300,"d":"300 lei"}]
[null,"Tata","Iarnă","Chirie",{"v":200,"d":"200 lei"}]
[null,"Tata","Iarnă","Utilități",{"v":400,"d":"400 lei"}]
[null,"Tata","Iarnă","Asigurare",{"v":300,"d":"300 lei"}]
[null,"Tata","Iarnă","Chirie",{"v":800,"d":"800 lei"}]
[null,"Tata","Iarnă","Utilități",{"v":400,"d":"400 lei"}]
[null,"Tata","Iarnă","Asigurare",{"v":200,"d":"200 lei"}]
[null,"Tata","Iarnă","Chirie",{"v":300,"d":"300 lei"}]
[null,"Tata","Iarnă","Utilități",{"v":450,"d":"450 lei"}]
[null,"Tata","Iarnă","Asigurare",{"v":230,"d":"230 lei"}]
[null,"Tata","Iarnă","Chirie",{"v":120,"d":"120 lei"}]
[null,"Tata","Iarnă","Utilități",{"v":400,"d":"400 lei"}]
[null,"Tata","Primăvară","Asigurare",{"v":210,"d":"210 lei"}]
[null,"Tata","Primăvară","Chirie",{"v":300,"d":"300 lei"}]
[null,"Tata","Primăvară","Utilități",{"v":400,"d":"400 lei"}]
[null,"Tata","Primăvară","Asigurare",{"v":230,"d":"230 lei"}]
[null,"Tata","Primăvară","Chirie",{"v":900,"d":"900 lei"}]
[null,"Tata","Primăvară","Utilități",{"v":300,"d":"300 lei"}]
[null,"Tata","Primăvară","Asigurare",{"v":200,"d":"200 lei"}]
[null,"Tata","Primăvară","Chirie",{"v":1000,"d":"1,000 lei"}]
[null,"Tata","Primăvară","Utilități",{"v":220,"d":"220 lei"}]
[null,"Tata","Primăvară","Asigurare",{"v":400,"d":"400 lei"}]
[null,"Tata","Primăvară","Chirie",{"v":200,"d":"200 lei"}]
[null,"Tata","Primăvară","Utilități",{"v":400,"d":"400 lei"}]
[null,"Mama","Vară","Asigurare",{"v":100,"d":"100 lei"}]
[null,"Mama","Vară","Chirie",{"v":30,"d":"30 lei"}]
[null,"Mama","Vară","Utilități",{"v":123,"d":"123 lei"}]
[null,"Mama","Vară","Asigurare",{"v":300,"d":"300 lei"}]
[null,"Mama","Vară","Chirie",{"v":350,"d":"350 lei"}]
[null,"Mama","Vară","Utilități",{"v":230,"d":"230 lei"}]
[null,"Mama","Vară","Asigurare",{"v":120,"d":"120 lei"}]
[null,"Mama","Vară","Chirie",{"v":640,"d":"640 lei"}]
[null,"Mama","Vară","Utilități",{"v":530,"d":"530 lei"}]
[null,"Mama","Vară","Asigurare",{"v":560,"d":"560 lei"}]
[null,"Mama","Vară","Chirie",{"v":240,"d":"240 lei"}]
[null,"Mama","Vară","Utilități",{"v":250,"d":"250 lei"}]
[null,"Mama","Toamnă","Asigurare",{"v":62,"d":"62 lei"}]
[null,"Mama","Toamnă","Chirie",{"v":600,"d":"600 lei"}]
[null,"Mama","Toamnă","Utilități",{"v":340,"d":"340 lei"}]
[null,"Mama","Toamnă","Asigurare",{"v":205,"d":"205 lei"}]
[null,"Mama","Toamnă","Chirie",{"v":500,"d":"500 lei"}]
[null,"Mama","Toamnă","Utilitare",{"v":403,"d":"403 lei"}]
[null,"Mama","Toamnă","Asigurare",{"v":503,"d":"503 lei"}]
[null,"Mama","Toamnă","Chirie",{"v":2000,"d":"2,000 lei"}]
[null,"Mama","Toamnă","Utilități",{"v":140,"d":"140 lei"}]
[null,"Mama","Toamnă","Asigurare",{"v":502,"d":"502 lei"}]
[null,"Mama","Toamnă","Chirie",{"v":120,"d":"120 lei"}]
[null,"Mama","Toamnă","Utilități",{"v":50,"d":"50 lei"}]

{"sheet":"19","index":19,"n_rows":55,"n_cols":5,"rows_kept":55}
["Sunteți gata să mai exersați? Profitați de ocazie și examinați datele de mai jos, din celulele B7-E55. Când sunteți gata, mergeți la foaia următoarul și veți exersa ce ați învățat până acum. "]
["Nu este nevoie să examinați toate rândurile de date. Revizuiți doar numele câmpurilor din rândul 7. Veți lucra cu acestea pe foaia următoare. "]
["Pentru a continua acest tutorial, apăsați CTRL+PAGE DOWN. Pentru a trece la foaia anterioară, apăsați CTRL+PAGE UP."]
[]
[]
[]
[null,"Anotimp","Agent de vânzări","Produs","Unități vândute"]
[null,"Iarnă","Crina","Portocale",300]
[null,"Iarnă","Gabriel","Grapefruit",200]
[null,"Iarnă","Daniel","Mere",400]
[null,"Iarnă","Crina","Banane",300]
[null,"Iarnă","Gabriel","Portocale",800]
[null,"Iarnă","Daniel","Grapefruit",400]
[null,"Iarnă","Crina","Mere",200]
[null,"Iarnă","Gabriel","Banane",300]
[null,"Iarnă","Daniel","Portocale",450]
[null,"Iarnă","Crina","Grapefruit",230]
[null,"Iarnă","Gabriel","Mere",120]
[null,"Iarnă","Daniel","Banane",400]
[null,"Primăvară","Crina","Sfeclă",210]
[null,"Primăvară","Gabriel","Cartofi",300]
[null,"Primăvară","Daniel","Salată verde",400]
[null,"Primăvară","Crina","Ridichi",230]
[null,"Primăvară","Gabriel","Sfeclă",900]
[null,"Primăvară","Daniel","Cartofi",300]
[null,"Primăvară","Crina","Salată verde",200]
[null,"Primăvară","Gabriel","Ridichi",1000]
[null,"Primăvară","Daniel","Sfeclă",220]
[null,"Primăvară","Crina","Cartofi",400]
[null,"Primăvară","Gabriel","Salată verde",200]
[null,"Primăvară","Daniel","Ridichi",400]
[null,"Vară","Crina","Afine",100]
[null,"Vară","Gabriel","Căpșuni",30]
[null,"Vară","Daniel","Struguri",123]
[null,"Vară","Crina","Dovleac",300]
[null,"Vară","Gabriel","Afine",350]
[null,"Vară","Daniel","Căpșuni",230]
[null,"Vară","Crina","Struguri",120]
[null,"Vară","Gabriel","Dovleac",640]
[null,"Vară","Daniel","Afine",530]
[null,"Vară","Crina","Căpșuni",560]
[null,"Vară","Gabriel","Struguri",240]
[null,"Vară","Daniel","Dovleac",250]
[null,"Toamnă","Crina","Dovlecel",62]
[null,"Toamnă","Gabriel","Zucchini",600]
[null,"Toamnă","Daniel","Mere",340]
[null,"Toamnă","Crina","Portocale",205]
[null,"Toamnă","Gabriel","Dovlecel",500]
[null,"Toamnă","Daniel","Zucchini",403]
[null,"Toamnă","Crina","Mere",503]
[null,"Toamnă","Gabriel","Portocale",2000]
[null,"Toamnă","Daniel","Dovlecel",140]
[null,"Toamnă","Crina","Zucchini",502]
[null,"Toamnă","Gabriel","Mere",120]
[null,"Toamnă","Daniel","Portocale",50]

{"sheet":"20","index":20,"n_rows":18,"n_cols":8,"rows_kept":18}
["1. Zona PivotTable pentru acest exemplu se află în celulele B13-C18. Navigați la oricare dintre aceste celule. \n\n"]
["2. Apăsați ALT+JZ, L pentru a lansa lista de Câmpuri PivotTable. Caseta text Căutare va avea focalizarea în mod implicit: „Tastați cuvintele ce trebuie căutate” pentru a le edita. Nu tastați nimic, în schimb apăsați tasta Tab o dată. NOTĂ: dacă lista de câmpuri nu se lansează, apăsați ALT+JZ, L din nou."]
["3. Apăsați tastele săgeată pentru a vă deplasa la câmpul Agent de vânzări. Apăsați BARA DE SPAȚIU pentru a adăuga câmpul Agent de vânzări în zona Rânduri. Dacă doriți să afișați detaliile pentru Agent de vânzări în zona Coloane, utilizați tastele Tab pentru a vă deplasa la câmpul Agent de vânzări în secțiunea Rând, apoi apăsați BARA DE SPAȚIU și selectați „Se mută la etichetele de coloane”. Apăsați tasta ESC pentru a ieși din panoul Câmpuri PivotTable. "]
["4. Determinați cine a vândut cele mai multe articole în toamnă, apoi faceți o selecție în celula H8. "]
["Pentru a continua acest tutorial, apăsați CTRL+PAGE DOWN. Pentru a trece la foaia anterioară, apăsați CTRL+PAGE UP."]
[]
[{"$nulls":7},"Alegeți o opțiune:"]
[]
[{"$nulls":7},{"$f":"IF($H$8=\"Gabriel\",\"Aveți dreptate!\",IF($H$8=\"Daniel\",\"Încercați din nou...\",IF($H$8=\"Crina\",\"Nu chiar...\",IF($H$8=\" \",\" \",\" \"))))","v":" "}]
[]
[]
[]
[null,"Etichete de rânduri","Sumă de Unități vândute"]
[null,"Toamnă",{"v":5425,"d":"5,425"}]
[null,"Primăvară",{"v":4760,"d":"4,760"}]
[null,"Vară",{"v":3473,"d":"3,473"}]
[null,"Iarnă",{"v":4100,"d":"4,100"}]
[null,"Total general",{"v":17758,"d":"17,758"}]

{"sheet":"21","index":21,"n_rows":14,"n_cols":10,"rows_kept":14}
["1. Faceți clic pe celula B13 pentru a activa raportul PivotTable numit „Sumă de Unități vândute”.\n\n"]
["2. Apăsați ALT+JZ, L pentru a lansa lista de Câmpuri PivotTable. Caseta text Căutare va avea focalizarea în mod implicit: „Tastați cuvintele ce trebuie căutate” pentru a le edita. Nu tastați nimic, în schimb apăsați tasta Tab o dată. NOTĂ: dacă lista de câmpuri nu se lansează, apăsați ALT+JZ, L din nou."]
["3. Utilizați săgeata și tastele BARĂ DE SPAȚIU pentru a extinde exemplul într-un raport PivotTable vertical, cu anotimpuri în partea stângă și agenții de vânzări indentați sub anotimpuri. Apăsați ESC pentru a ieși din panoul Câmpuri PivotTable. "]
["Pentru a continua acest tutorial, apăsați CTRL+PAGE DOWN. Pentru a trece la foaia anterioară, apăsați CTRL+PAGE UP."]
[{"$nulls":9},{"$f":"IF(AND(B$22=\"Toamnă\",$C$23=1272),\"Felicitări! Ați amplasat un\",\" \")","v":" "}]
[{"$nulls":9},{"$f":"IF(AND(B$22=\"Toamnă\",$C$23=1272),\"câmp rând secundar. Acum\",\" \")","v":" "}]
[{"$nulls":9},{"$f":"IF(AND(B$22=\"Toamnă\",$C$23=1272),\"defilați în jos și faceți clic pe Următorul.\",\" \")","v":" "}]
[]
[]
[]
[]
[]
[null,"Sumă de Unități vândute"]
[null,{"v":17758,"d":"17,758"}]

{"sheet":"22","index":22,"n_rows":14,"n_cols":10,"rows_kept":14}
["1. Faceți clic pe celula B13 pentru a activa raportul PivotTable numit „Sumă de Unități vândute”."]
["2. Apăsați ALT+JZ, L pentru a lansa lista de Câmpuri PivotTable. Caseta text Căutare va avea focalizarea în mod implicit: „Tastați cuvintele ce trebuie căutate” pentru a le edita. Nu tastați nimic, în schimb apăsați tasta Tab o dată. NOTĂ: dacă lista de câmpuri nu se lansează, apăsați ALT+JZ, L din nou."]
["3. Utilizați săgeata și tastele BARĂ DE SPAȚIU pentru a modifica exemplul, astfel încât să afișeze fiecare produs în propriul său rând și fiecare anotimp în propria sa coloană."]
["Pentru a continua acest tutorial, apăsați CTRL+PAGE DOWN. Pentru a trece la foaia anterioară, apăsați CTRL+PAGE UP.",{"$nulls":8},{"$f":"IF(AND($B$22=\"Mere\",$G$28=1505),\"Felicitări! Ați amplasat\",\" \")","v":" "}]
[{"$nulls":9},{"$f":"IF(AND($B$22=\"Mere\",$G$28=1505),\"un câmp rând în partea,\",\" \")","v":" "}]
[{"$nulls":9},{"$f":"IF(AND($B$22=\"Mere\",$G$28=1505),\"stângă și un câmp coloană cu\",\" \")","v":" "}]
[{"$nulls":9},{"$f":"IF(AND($B$22=\"Mere\",$G$28=1505),\"patru coloane noi. Defilați în\",\" \")","v":" "}]
[{"$nulls":9},{"$f":"IF(AND($B$22=\"Mere\",$G$28=1505),\"jos și faceți clic pe Următorul...\",\" \")","v":" "}]
[]
[]
[]
[]
[null,"Sumă de Unități vândute"]
[null,{"v":17758,"d":"17,758"}]

{"sheet":"23","index":23,"n_rows":16,"n_cols":18,"rows_kept":16}
["1. Faceți clic pe celula B13 pentru a activa raportul PivotTable numit „Suma unităților vândute”.\n\n"]
["2. Apăsați ALT+JZ, L pentru a lansa lista de Câmpuri PivotTable. Caseta text Căutare va avea focalizarea în mod implicit: „Tastați cuvintele ce trebuie căutate” pentru a le edita. Nu tastați nimic, în schimb apăsați tasta Tab o dată. NOTĂ: dacă lista de câmpuri nu se lansează, apăsați ALT+JZ, L din nou."]
["3. Utilizați tastele Tab, săgeți și BARĂ DE SPAȚIU pentru a modifica exemplul, astfel încât să afișeze Agenții de vânzări în partea stângă, cu anotimpurile indentate dedesubt."]
["Pentru a continua acest tutorial, apăsați CTRL+PAGE DOWN. Pentru a trece la foaia anterioară, apăsați CTRL+PAGE UP."]
[{"$nulls":9},{"$f":"IF(AND($B$14=\"Daniel\",$C$14=5036),\"Felicitări! Acum datele sunt\",\" \")","v":" "}]
[{"$nulls":9},{"$f":"IF(AND($B$14=\"Daniel\",$C$14=5036),\"mai ușor de citit. Defilați în\",\" \")","v":" "}]
[{"$nulls":9},{"$f":"IF(AND($B$14=\"Daniel\",$C$14=5036),\"jos și faceți clic pe Următorul...\",\" \")","v":" "}]
[]
[]
[]
[]
[]
[null,null,"Etichete de coloane"]
[null,null,"Daniel",{"$nulls":3},"Daniel Total","Gabriel",{"$nulls":3},"Gabriel Total","Crina",{"$nulls":3},"Crina Total","Total general"]
[null,null,"Toamnă","Primăvară","Vară","Iarnă",null,"Toamnă","Primăvară","Vară","Iarnă",null,"Toamnă","Primăvară","Vară","Iarnă"]
[null,"Sumă de Unități vândute",933,{"v":1320,"d":"1,320"},{"v":1133,"d":"1,133"},{"v":1650,"d":"1,650"},{"v":5036,"d":"5,036"},{"v":3220,"d":"3,220"},{"v":2400,"d":"2,400"},{"v":1260,"d":"1,260"},{"v":1420,"d":"1,420"},{"v":8300,"d":"8,300"},{"v":1272,"d":"1,272"},{"v":1040,"d":"1,040"},{"v":1080,"d":"1,080"},{"v":1030,"d":"1,030"},{"v":4422,"d":"4,422"},{"v":17758,"d":"17,758"}]

{"sheet":"24","index":24,"n_rows":14,"n_cols":9,"rows_kept":14}
["1. Faceți clic pe celula B13 pentru a activa raportul PivotTable numit „Sumă de Unități vândute”."]
["2. Apăsați ALT+JZ, L pentru a lansa lista de Câmpuri PivotTable. Caseta text Căutare va avea focalizarea în mod implicit: „Tastați cuvintele ce trebuie căutate” pentru a le edita. Nu tastați nimic, în schimb apăsați tasta Tab o dată. NOTĂ: dacă lista de câmpuri nu se lansează, apăsați ALT+JZ, L din nou."]
["3. Utilizați tastele Tab, săgeți și BARĂ DE SPAȚIU pentru a modifica exemplul, astfel încât fiecare Agent de vânzări să aibă propriile câmpuri coloană cu anotimpurile în partea stângă și produsele indentate dedesubt."]
["4. Selectați celula I9 și alegeți cât grapefruit a vândut Daniel în timpul iernii."]
["Pentru a continua acest tutorial, apăsați CTRL+PAGE DOWN. Pentru a trece la foaia anterioară, apăsați CTRL+PAGE UP."]
[]
[]
[{"$nulls":8},"Alegeți o opțiune:"]
[]
[{"$nulls":8},{"$f":"IF($I$9=400,\"Aveți dreptate!\",IF($I$9=530,\"Încercați din nou…\",IF($I$9=123,\"Nu chiar…\",\" \")))","v":" "}]
[]
[]
[null,"Sumă de Unități vândute"]
[null,{"v":17758,"d":"17,758"}]

{"sheet":"Aflați mai multe","index":25,"n_rows":8,"n_cols":1,"rows_kept":8}
["Felicitări. Nu-i așa că sunt grozave rapoartele PivotTable?"]
["Vă încurajăm să mergeți mai departe! Mai sunt multe de descoperit..."]
["Mai multe informații despre Pivot\nDescoperiți mai multe lucruri pe care le puteți face citind următorul articol util despre rapoartele PivotTable."]
["Despre reîmprospătare\nCitiți acest articol important despre cum să reîmprospătați rapoartele PivotTable. "]
["Comunitate\nConectați-vă cu alți fani Excel. Ei vă pot ajuta pe dvs. și dvs. îi puteți ajuta pe ei."]
[]
[]
[" "]